bitfinex/quotes_ETHUSD_20260305
["timestamp","ask_amount","ask_price","bid_price","bid_amount"]
[1772675858963,1.18292798,2113.4,2112.1,0.45461489]
[1772675859367,0.47918111,2113.3,2112.2,1.18360003]
[1772675859670,0.47918111,2113.3,2112.3,1.006]
[1772675860356,0.47918111,2113.3,2112.2,1.18360003]
[1772675860555,0.47918111,2113.3,2112.3,1.006]
[1772675860867,0.47918111,2113.3,2112.4,1.006]
[1772675861445,0.47918111,2113.1,2112.4,1.006]
[1772675861768,0.47918111,2113.1,2111.9,1.18376817]
[1772675861966,0.47918111,2113.1,2112.3,1.006]
[1772675863056,0.47918111,2113.1,2111.8,0.15574966]
[1772675863257,0.47918111,2113.1,2111.9,1.006]
[1772675863475,0.47918111,2112.9,2111.9,1.006]
[1772675863855,0.47918111,2112.9,2111.9,2.18976287]
[1772675864159,0.47918111,2112.9,2111.9,1.006]
[1772675864877,0.47918111,2112.9,2111.8,0.15574966]
[1772675865177,0.47918111,2112.9,2111.8,2.3455685]
[1772675865543,1.18326391,2112.8,2111.8,2.3455685]
[1772675865747,0.47918111,2112.7,2111.8,2.3455685]
[1772675866869,0.47918111,2112.7,2111.8,0.15574966]
[1772675867179,0.47918111,2112.7,2111.0,4.73693425]
[1772675867180,0.47918111,2112.6,2111.0,4.73693425]
[1772675867366,0.47918111,2112.6,2111.1,1.46071489]
[1772675867673,0.47918111,2112.6,2111.8,0.0011]
[1772675867674,1.18343195,2112.5,2111.8,0.0011]
[1772675867881,0.47918111,2112.4,2111.8,0.0011]
[1772675869668,1.183544,2112.3,2111.8,0.0011]
[1772675870067,14.91235128,2113.2,2111.8,0.0011]
[1772675870068,1.63582682,2112.7,2111.8,0.0011]
[1772675870378,0.4525069,2112.6,2111.8,0.0011]
[1772675872154,0.4525069,2112.4,2111.8,0.0011]
[1772675874457,1.183544,2112.3,2111.8,0.0011]
[1772675875353,1.63577081,2112.8,2111.8,0.0011]
[1772675875556,0.4525069,2112.7,2111.8,0.0011]
[1772675875978,0.4525069,2112.7,2111.8,1.0031]
[1772675876558,1.63588283,2112.6,2111.9,1.18376817]
[1772675877286,0.4525069,2112.5,2111.8,1.0031]
[1772675877464,0.4525069,2112.5,2111.8,0.0011]
[1772675878475,0.4525069,2112.5,2111.8,1.18491904]
[1772675878785,0.4525069,2112.3,2111.8,0.0011]
[1772675879465,1.18347281,2112.5,2112.0,0.0011]
[1772675879673,0.001,2112.4,2112.0,0.0011]
[1772675880865,0.4535069,2112.4,2112.0,0.0011]
[1772675881890,0.4535069,2112.4,2111.8,0.0011]
[1772675882303,0.001,2112.9,2111.9,0.45681489]
[1772675882684,0.001,2112.9,2112.2,2.60772587]
[1772675882896,0.4535069,2112.9,2112.2,1.0]
[1772675884783,1.63675261,2112.9,2112.3,1.183544]
[1772675886013,0.001,2112.9,2112.3,1.183544]
[1772675886207,0.001,2112.9,2112.4,0.45681489]
[1772675886771,4.73179349,2113.4,2112.5,1.18343195]
[1772675886772,1.18297263,2113.4,2112.5,1.18343195]
[1772675886988,1.18281516,2113.7,2112.6,0.45681489]
[1772675887501,1.63532206,2113.7,2112.6,0.45681489]
[1772675887698,0.4525069,2113.6,2112.7,0.999]
[1772675887877,0.4525069,2113.5,2112.7,0.999]
[1772675889009,1.18292798,2113.4,2112.8,1.18326391]
[1772675889179,5.18421883,2113.5,2112.8,1.18326391]
[1772675889180,1.63542136,2113.5,2112.8,1.18326391]
[1772675889503,4.73111541,2113.7,2112.8,1.18326391]
[1772675889707,5.18362231,2113.7,2112.8,1.18326391]
[1772675890178,5.18362231,2113.7,2112.8,1.6400788]
[1772675890381,0.4525069,2113.6,2112.8,1.18326391]
[1772675891197,1.18287201,2113.5,2112.8,1.18326391]
[1772675891697,0.001,2113.3,2112.9,0.999]
[1772675891996,0.001,2113.3,2112.6,1.18337593]
[1772675892198,0.001,2113.3,2112.7,0.999]
[1772675892886,0.001,2113.3,2112.7,1.45581489]
[1772675893412,0.001,2113.3,2112.8,1.18326391]
[1772675893609,0.001,2113.3,2112.9,0.45681489]
[1772675895475,0.001,2113.3,2112.8,1.18326391]
[1772675896984,5.18333038,2113.8,2112.8,1.6400788]
[1772675897191,5.18333038,2113.8,2112.9,0.45581489]
[1772675897611,5.18333038,2113.8,2113.0,1.18315191]
[1772675897807,1.63521103,2113.8,2113.0,1.6389668]
[1772675899105,1.18270413,2113.8,2113.1,0.45581489]
[1772675899307,1.18259224,2114.0,2113.2,1.45581489]
[1772675899684,1.18259224,2114.0,2113.3,1.18298395]
[1772675899880,1.18259224,2114.0,2112.5,0.45581489]
[1772675899881,0.49207778,2114.0,2112.5,0.45581489]
[1772675900088,0.49207778,2113.8,2112.6,1.45581489]
[1772675900697,0.49207778,2113.8,2112.7,0.45581489]
[1772675901195,0.49207778,2113.8,2112.7,1.0]
[1772675901599,1.18276008,2113.7,2112.7,1.0]
[1772675901900,0.49207778,2113.6,2112.7,1.0]
[1772675902300,0.49207778,2113.6,2112.4,1.18454225]
[1772675902512,0.49207778,2113.6,2112.5,1.001]
[1772675904012,0.49207778,2113.5,2112.5,1.001]
[1772675904425,0.49207778,2113.3,2112.4,0.0011]
[1772675904597,0.49207778,2113.3,2113.0,0.0011]
[1772675905501,0.49207778,2113.3,2112.4,0.0011]
[1772675905816,0.49207778,2113.1,2112.4,0.0011]
[1772675908200,0.49869402,2112.9,2112.4,0.0011]
[1772675910222,1.68195793,2112.8,2112.4,0.0011]
[1772675910631,1.18326391,2112.8,2112.4,0.0011]
[1772675910920,1.18315191,2113.0,2112.4,0.0011]
[1772675911124,5.23123488,2113.1,2112.4,0.45801489]
[1772675911329,1.68183348,2113.1,2112.4,0.45801489]
[1772675912431,1.68183348,2113.1,2112.4,2.18258223]
[1772675912727,0.49869402,2113.0,2112.4,2.1825833]
[1772675913234,0.49869402,2113.0,2112.4,0.0011]
[1772675914235,1.18320791,2112.9,2112.4,0.0011]
[1772675914895,0.49869402,2113.5,2112.4,0.45801489]
[1772675915101,0.49869402,2113.3,2112.4,0.45801489]
[1772675916327,1.68168622,2113.3,2112.6,0.45691489]
[1772675916827,1.68168622,2113.3,2112.6,0.45801489]
[1772675917211,1.1829922,2113.3,2112.6,0.45801489]
[1772675917537,5.23029547,2113.5,2112.6,1.45701489]
[1772675918434,1.68156603,2113.5,2112.8,1.18326391]
[1772675920837,1.68158174,2113.5,2112.8,1.18326391]
[1772675921135,1.68158174,2113.5,2112.9,0.999]
[1772675922840,0.49869402,2113.4,2112.9,0.999]
[1772675923034,0.49869402,2113.4,2112.7,0.999]
[1772675923536,0.49869402,2113.2,2112.6,0.0011]
[1772675924641,0.49869402,2113.2,2112.6,1.18446067]
[1772675924845,1.18309592,2113.1,2112.6,0.0011]
[1772675925137,1.68178994,2113.1,2112.6,0.0011]
[1772675925317,0.49869402,2113.0,2112.6,0.0011]
[1772675927038,1.18320791,2112.9,2112.6,0.0011]
[1772675927723,1.68186332,2113.0,2112.6,0.0011]
[1772675927927,1.6817245,2113.3,2112.6,0.0011]
[1772675928319,0.49869402,2113.2,2112.6,0.0011]
[1772675929332,0.001,2112.8,2112.6,0.0011]
[1772675929731,1.18301519,2113.3,2112.6,0.45801489]
[1772675929930,1.18292798,2113.4,2112.6,0.45801489]
[1772675930137,0.46605248,2113.3,2112.6,0.45801489]
[1772675930333,0.46605248,2113.3,2112.7,0.999]
[1772675930723,1.18292798,2113.4,2112.7,0.999]
[1772675931120,1.64898046,2113.4,2112.7,0.999]
[1772675931453,0.46605248,2113.3,2112.7,2.18231376]
[1772675931629,0.46605248,2113.3,2112.7,0.999]
[1772675932517,0.46605248,2113.3,2112.6,0.0011]
[1772675933432,0.46605248,2113.1,2112.4,0.0011]
[1772675933633,0.46605248,2112.9,2112.1,0.0011]
[1772675934157,0.46605248,2112.9,2112.1,1.1847509]
[1772675934546,0.46605248,2112.9,2112.1,1.64276579]
[1772675934745,0.46605248,2112.9,2112.1,1.18474946]
[1772675935253,0.46605248,2112.9,2112.1,2.18374946]
[1772675935644,1.18326391,2112.8,2112.1,2.18374946]
[1772675936628,1.64929779,2112.9,2112.1,2.18374946]
[1772675936851,1.64929779,2112.9,2112.2,0.45801489]
[1772675937436,1.64926317,2112.9,2112.2,0.45801489]
[1772675938154,1.64926862,2112.9,2112.3,1.183544]
[1772675938362,1.18321614,2112.9,2112.3,1.183544]
[1772675938670,1.6491484,2113.1,2112.3,1.183544]
[1772675939460,1.6491484,2113.1,2112.3,1.64155889]
[1772675941132,0.46605248,2113.0,2112.3,1.64155889]
[1772675941332,0.46605248,2113.0,2112.4,0.0011]
[1772675941532,0.001,2112.7,2112.4,0.0011]
[1772675941765,0.001,2112.7,2112.4,0.45911489]
[1772675941963,1.64913175,2113.2,2112.4,0.45911489]
[1772675942168,1.18307927,2113.2,2112.4,0.45911489]
[1772675942739,0.46605248,2113.2,2112.4,1.0011]
[1772675943664,0.46605248,2113.0,2112.4,1.0011]
[1772675943965,0.46605248,2113.0,2112.4,2.18456925]
[1772675944945,1.64921496,2113.0,2112.4,1.0011]
[1772675945154,1.64921496,2113.0,2112.4,2.18458307]
[1772675946966,0.46605248,2113.0,2112.4,2.18458307]
[1772675947178,0.46605248,2113.0,2112.4,2.64259796]
[1772675947542,1.18307406,2113.2,2112.5,0.45801489]
[1772675947966,1.64912654,2113.2,2112.5,0.45801489]
[1772675948957,1.18315191,2113.0,2112.6,2.18436921]
[1772675949162,1.18315191,2113.0,2112.6,1.001]
[1772675949689,1.64892449,2113.5,2112.7,1.45901489]
[1772675949848,1.64892449,2113.5,2112.8,0.45801489]
[1772675950783,0.46605248,2113.5,2112.8,0.45801489]
[1772675950966,1.64885949,2113.7,2112.8,0.45801489]
[1772675951169,0.46605248,2113.6,2113.0,0.45801489]
[1772675951674,0.46605248,2113.6,2112.9,1.18320791]
[1772675953178,0.001,2113.0,2112.8,4.73283165]
[1772675953398,1.64892449,2113.5,2112.8,4.73283165]
[1772675953955,1.64892449,2113.5,2112.8,5.19084654]
[1772675955088,0.46605248,2113.5,2112.9,0.45801489]
[1772675955290,1.64979556,2113.8,2113.0,1.6411668]
[1772675955460,0.46605248,2113.7,2113.0,1.6411668]
[1772675956269,0.46605248,2113.7,2113.1,1.001]
[1772675956467,0.46605248,2113.7,2113.1,1.002]
[1772675956683,0.46605248,2113.7,2112.7,1.18329431]
[1772675956986,0.46605248,2113.7,2112.9,1.002]
[1772675957361,0.46605248,2113.5,2112.9,1.002]
[1772675958786,0.46605248,2113.5,2112.9,2.18519098]
[1772675958970,0.46605248,2113.5,2112.9,1.002]
[1772675959494,1.67381437,2113.4,2112.9,1.002]
[1772675959783,0.49088639,2113.3,2112.9,1.002]
[1772675960087,0.49088639,2113.3,2112.6,0.0011]
[1772675960269,0.49088639,2113.3,2112.6,1.0031]
[1772675961481,1.18303993,2113.2,2112.6,1.0031]
[1772675961681,0.49088639,2113.1,2112.6,1.0031]
[1772675962481,0.49088639,2113.1,2112.6,2.18647536]
[1772675962684,1.67389847,2113.3,2112.7,0.45801489]
[1772675963570,1.67389847,2113.3,2112.8,1.18326391]
[1772675963759,1.67389847,2113.3,2112.7,1.64128841]
[1772675964379,0.49088639,2113.5,2112.8,0.45801489]
[1772675964793,0.49088639,2113.5,2112.9,0.45911489]
[1772675964992,0.001,2113.2,2112.9,0.45911489]
[1772675966169,0.001,2113.2,2113.0,1.18315191]
[1772675966491,0.001,2113.2,2113.1,1.003]
[1772675967892,0.001,2113.2,2113.0,1.003]
[1772675969496,0.001,2113.2,2113.0,2.18614937]
[1772675969994,0.001,2113.2,2113.0,1.003]
[1772675970176,0.001,2113.2,2113.0,2.18615138]
[1772675970490,0.001,2113.2,2113.0,2.64416627]
[1772675971487,0.46903879,2113.7,2113.0,2.18615138]
[1772675971873,0.001,2113.8,2113.1,0.45801489]
[1772675972074,1.65274794,2113.8,2113.1,0.45801489]
[1772675972274,0.46903879,2113.7,2113.1,0.45801489]
[1772675972477,0.46903879,2113.7,2113.2,1.004]
[1772675972783,0.46903879,2113.7,2112.9,1.18427089]
[1772675972979,0.46903879,2113.7,2113.0,1.004]
[1772675973372,0.46903879,2113.5,2113.1,1.004]
[1772675974279,0.46903879,2113.5,2112.9,0.0011]
[1772675975689,0.46903879,2113.3,2112.9,0.0011]
[1772675975899,0.46903879,2113.3,2112.6,0.0011]
[1772675977196,0.46903879,2113.3,2113.1,0.0011]
[1772675977407,0.47003879,2113.3,2112.6,0.0011]
[1772675977706,0.47003879,2113.3,2112.9,0.0011]
[1772675977905,0.46903879,2113.1,2112.9,0.0011]
[1772675980300,1.6521907,2113.0,2112.9,0.0011]
[1772675982490,1.65306781,2113.3,2112.9,0.0011]
[1772675982727,0.46903879,2113.2,2112.6,0.0011]
[1772675984518,1.18309592,2113.1,2112.6,0.0011]
[1772675987218,1.65213471,2113.1,2112.6,0.49013623]
[1772675987414,0.46903879,2113.0,2112.6,0.0011]
[1772675987723,1.18309592,2113.1,2112.6,0.0011]
[1772675987925,1.18309592,2113.1,2112.6,0.49013623]
[1772675988418,0.001,2113.3,2112.6,0.49013623]
[1772675988622,0.001,2113.3,2112.8,0.49548677]
[1772675989121,0.001,2113.3,2112.8,0.49658677]
[1772675989495,0.46625446,2113.3,2112.8,1.50258677]
[1772675990094,0.46625446,2113.3,2112.8,0.0011]
[1772675990726,1.18303993,2113.2,2112.8,0.0011]
[1772675991325,1.64927745,2113.3,2112.8,0.0011]
[1772675991620,1.18402299,2113.3,2112.8,0.49658677]
[1772675991923,1.18400395,2113.3,2112.8,0.49658677]
[1772675993114,1.18289062,2113.5,2113.0,0.49548677]
[1772675993624,1.18373774,2113.8,2113.0,0.49548677]
[1772675994319,0.001,2113.8,2113.0,0.49548677]
[1772675995224,0.001,2113.8,2113.2,0.49548677]
[1772675995522,0.001,2113.8,2113.4,0.49548677]
[1772675997210,0.001,2113.8,2113.3,1.006]
[1772675997430,1.18370413,2113.8,2113.4,0.49548677]
[1772675999832,1.18370413,2113.8,2113.4,1.6784133]
[1772676000032,1.18370413,2113.8,2113.4,0.49548677]
[1772676000233,0.001,2113.8,2113.4,1.67840918]
[1772676000430,0.001,2113.8,2113.3,1.18295537]
[1772676000631,0.001,2113.8,2113.2,1.006]
[1772676000632,0.46625446,2113.8,2113.2,1.006]
[1772676000931,0.46525446,2113.7,2112.9,1.006]
[1772676001309,0.46525446,2114.3,2113.1,0.49548677]
[1772676001615,1.18336852,2114.4,2113.1,0.49548677]
[1772676001816,1.18231872,2114.5,2113.2,0.49548677]
[1772676002134,0.46525446,2114.4,2113.2,0.49548677]
[1772676002437,0.46525446,2114.4,2113.4,0.49548677]
[1772676003001,1.18231872,2114.5,2113.4,0.49548677]
[1772676003002,0.001,2113.5,2113.4,0.49548677]
[1772676003216,0.001,2113.5,2113.4,1.006]
[1772676003415,0.001,2113.5,2113.0,0.0011]
[1772676003625,0.46625446,2113.5,2113.0,0.0011]
[1772676004503,0.001,2113.5,2113.0,0.0011]
[1772676005107,0.46625446,2113.5,2113.0,0.0011]
[1772676005312,0.001,2113.5,2113.0,1.67973551]
[1772676005706,1.83225446,2114.2,2113.1,0.49548677]
[1772676005909,1.18328608,2114.6,2113.3,0.49548677]
[1772676007216,1.18328608,2114.6,2113.5,0.49548677]
[1772676007412,0.001,2114.6,2113.7,0.49548677]
[1772676009034,0.001,2114.8,2113.8,0.49548677]
[1772676009415,0.001,2114.8,2113.9,1.18264818]
[1772676009616,0.001,2114.8,2114.1,0.49548677]
[1772676010144,0.46625446,2114.8,2113.9,2.18864818]
[1772676010317,0.46625446,2114.8,2113.9,1.006]
[1772676010634,0.46625446,2114.8,2113.6,2.68430281]
[1772676010827,0.46625446,2114.8,2113.7,0.49548677]
[1772676012027,1.18220078,2114.7,2113.9,0.49548677]
[1772676012423,1.64745524,2114.7,2113.9,0.49548677]
[1772676012624,0.46525446,2114.6,2113.8,1.006]
[1772676013021,0.46525446,2114.6,2113.3,1.50148677]
[1772676013221,0.46525446,2114.6,2113.3,2.68445579]
[1772676013431,0.46525446,2114.6,2113.4,0.49548677]
[1772676013821,0.46525446,2114.6,2113.3,1.006]
[1772676014144,0.46525446,2114.4,2113.3,1.006]
[1772676014343,0.46525446,2114.2,2113.0,0.13401626]
[1772676014543,0.46525446,2114.0,2113.2,0.0011]
[1772676015244,0.46525446,2113.8,2113.2,0.0011]
[1772676016528,0.46525446,2113.6,2113.2,0.0011]
[1772676016846,0.46525446,2113.6,2113.0,0.13401626]
[1772676017037,0.46525446,2113.6,2112.8,0.0011]
[1772676017543,0.46525446,2113.6,2112.8,1.18433259]
[1772676017743,1.18276008,2113.7,2112.9,0.49548677]
[1772676018128,1.18274925,2113.8,2113.0,0.49548677]
[1772676018725,4.73016462,2114.1,2113.1,1.64616392]
[1772676019246,4.73016462,2114.1,2113.2,0.463068]
[1772676019447,0.46558007,2114.0,2113.0,0.463068]
[1772676019647,4.73016462,2114.1,2113.0,0.463068]
[1772676020243,5.19574469,2114.1,2113.0,0.463068]
[1772676021533,5.19574469,2114.1,2113.1,1.64616392]
[1772676021943,5.19574469,2114.1,2113.2,1.005]
[1772676022144,4.73016462,2114.1,2113.3,0.463068]
[1772676022337,4.72971407,2114.3,2113.3,0.463068]
[1772676022338,1.18242444,2114.3,2113.3,0.463068]
[1772676022727,1.18242444,2114.3,2113.5,0.463068]
[1772676023050,1.18242444,2114.3,2113.6,0.49183504]
[1772676023554,1.18242444,2114.3,2113.6,0.463068]
[1772676023950,0.001,2114.5,2113.7,1.64582808]
[1772676024454,0.001,2114.5,2113.8,0.463068]
[1772676024950,0.001,2114.5,2114.0,0.463068]
[1772676025368,0.001,2114.5,2114.1,1.004]
[1772676025660,4.72980256,2114.8,2114.1,1.467068]
[1772676025661,1.18217472,2114.8,2114.1,1.467068]
[1772676025955,4.60764798,2114.9,2114.2,1.18248037]
[1772676026526,0.46558007,2114.8,2113.8,0.463068]
[1772676026745,0.46558007,2114.8,2113.9,1.467068]
[1772676026945,1.18197721,2115.1,2114.1,0.463068]
[1772676027326,1.64457529,2115.1,2114.1,0.463068]
[1772676027827,1.64457529,2115.1,2114.2,1.68062575]
[1772676028252,5.18942085,2115.6,2114.5,0.49814538]
[1772676028448,0.46259808,2115.4,2114.5,0.49814538]
[1772676028628,0.46259808,2115.4,2114.5,1.50214538]
[1772676028954,0.46259808,2115.4,2114.2,1.68062575]
[1772676029157,0.46259808,2115.4,2114.4,1.004]
[1772676029362,0.46259808,2115.4,2114.4,1.50214538]
[1772676029658,0.46259808,2115.4,2114.4,1.004]
[1772676029855,4.72682277,2115.6,2114.6,1.18225669]
[1772676030049,4.72682277,2115.6,2114.7,0.49814538]
[1772676030436,0.46259808,2115.5,2114.5,1.18227922]
[1772676030635,0.46259808,2115.5,2114.5,2.18527922]
[1772676030837,1.18169786,2115.7,2114.6,0.49814538]
[1772676031039,4.72570258,2116.1,2114.6,0.49814538]
[1772676031237,0.46259808,2116.0,2114.6,0.49814538]
[1772676031657,4.72570258,2116.1,2114.6,0.49814538]
[1772676032042,4.72570258,2116.1,2114.8,0.49814538]
[1772676032262,5.18830066,2116.1,2114.8,0.49814538]
[1772676032472,0.46259808,2116.0,2115.0,0.49814538]
[1772676032665,4.72570258,2116.1,2115.0,0.49814538]
[1772676032960,1.18136282,2116.2,2115.0,0.49814538]
[1772676033152,1.18119536,2116.5,2115.0,0.49814538]
[1772676034035,0.46259808,2116.4,2115.2,0.49814538]
[1772676034362,0.46259808,2116.4,2115.4,0.49814538]
[1772676034733,0.46259808,2116.4,2115.3,1.002]
[1772676035257,0.46259808,2116.4,2115.4,0.49814538]
[1772676035450,1.18119536,2116.5,2115.4,0.49814538]
[1772676035664,1.18117849,2116.6,2115.4,0.49814538]
[1772676035834,0.46259808,2116.5,2115.4,0.49814538]
[1772676036035,1.18125118,2116.4,2115.5,1.6798991]
[1772676036559,1.18125118,2116.4,2115.6,0.49814538]
[1772676037060,0.46259808,2116.3,2115.1,1.18197721]
[1772676037241,0.46259808,2116.3,2115.1,2.68212259]
[1772676038165,0.46259808,2116.1,2115.1,2.68212259]
[1772676038535,1.64362604,2116.8,2115.2,0.49814538]
[1772676038732,0.46259808,2116.7,2115.2,0.49814538]
[1772676038967,0.46259808,2116.6,2115.3,0.49814538]
[1772676039465,0.001,2116.2,2115.3,0.49814538]
[1772676039842,0.46359808,2116.2,2115.3,0.49814538]
[1772676040065,0.46359808,2116.2,2115.3,1.49914538]
[1772676040266,1.18141864,2116.1,2115.4,1.18180958]
[1772676040658,1.64401672,2116.1,2115.3,1.001]
[1772676040855,0.46259808,2116.0,2115.0,1.68013765]
[1772676041566,0.46259808,2116.0,2115.0,2.68113765]
[1772676042288,0.46259808,2116.0,2115.0,1.18199227]
[1772676042289,0.46259808,2115.8,2115.0,1.18199227]
[1772676042438,0.46259808,2115.8,2114.9,2.18303762]
[1772676043170,0.46259808,2115.8,2114.6,1.18222128]
[1772676043766,0.46259808,2115.8,2114.5,1.18227444]
[1772676044138,0.46259808,2115.8,2114.5,1.68041982]
[1772676044344,0.46259808,2115.6,2114.5,1.68041982]
[1772676044670,0.46259808,2115.6,2114.6,0.49814538]
[1772676045948,1.181642,2115.7,2114.6,0.49814538]
[1772676046761,4.72656803,2115.8,2114.7,1.18220078]
[1772676046944,1.64401672,2116.1,2114.8,0.49814538]
[1772676047295,0.46259808,2116.0,2114.8,0.49814538]
[1772676047570,0.46259808,2116.0,2115.0,0.49814538]
[1772676047867,1.18141864,2116.1,2115.0,0.49814538]
[1772676048069,0.46259808,2116.0,2114.9,1.0]
[1772676048466,0.46259808,2116.0,2114.9,1.49814538]
[1772676048654,0.46259808,2116.0,2115.0,0.48787]
[1772676048843,1.18153031,2115.9,2115.1,1.18197721]
[1772676049172,0.48191219,2115.8,2114.7,0.48787]
[1772676049348,0.48191219,2115.7,2114.7,1.67002773]
[1772676049549,0.48191219,2115.7,2114.5,4.7291906]
[1772676049748,0.48191219,2115.7,2114.5,6.2160606]
[1772676049944,0.48191219,2115.7,2114.6,0.48787]
[1772676050955,1.18169786,2115.6,2114.7,1.67007078]
[1772676051290,1.66358864,2115.7,2114.8,0.48787]
[1772676051451,1.18167645,2115.7,2114.8,0.48787]
[1772676052059,0.001,2115.5,2114.8,0.48787]
[1772676053268,0.001,2115.5,2114.9,1.18208898]
[1772676053574,0.001,2115.5,2114.9,1.66995898]
[1772676053778,0.001,2115.5,2115.0,0.48787]
[1772676053979,0.001,2115.5,2115.1,0.999]
[1772676054195,1.6634425,2115.9,2115.1,0.999]
[1772676055282,1.6634425,2115.9,2115.2,1.18192133]
[1772676056158,1.18153031,2115.9,2115.2,1.66979133]
[1772676056769,0.48191219,2115.8,2115.0,0.999]
[1772676057352,1.181642,2115.7,2115.0,0.999]
[1772676057964,1.181642,2115.7,2114.6,4.72901095]
[1772676057965,3.24432689,2115.6,2114.6,0.999]
[1772676058256,3.24432689,2115.6,2114.7,0.48787]
[1772676058257,0.48191219,2115.6,2114.7,0.48787]
[1772676058460,1.181642,2115.7,2114.7,0.48787]
[1772676058986,0.48191219,2115.6,2114.7,0.48787]
[1772676059382,1.18175372,2115.5,2114.7,1.67004626]
[1772676059578,1.66366591,2115.5,2114.7,1.67004626]
[1772676060096,0.48191219,2115.4,2114.5,1.18227038]
[1772676060295,0.48191219,2115.4,2114.6,0.999]
[1772676060784,0.48191219,2115.4,2114.6,1.48687]
[1772676061100,1.18175372,2115.5,2114.7,0.48787]
[1772676061592,4.72701489,2115.6,2114.8,1.18214488]
[1772676061892,2.76577081,2115.5,2114.8,1.18214488]
[1772676062196,4.72701489,2115.6,2114.8,1.18214488]
[1772676062398,1.18169786,2115.6,2114.8,1.18214488]
[1772676062688,1.18169786,2115.6,2114.8,1.67001488]
[1772676064273,4.72645748,2115.8,2114.9,0.48787]
[1772676064460,2.76587277,2115.7,2114.9,0.48787]
[1772676064660,4.72645748,2115.8,2114.9,0.48787]
[1772676064661,0.001,2115.5,2114.9,0.48787]
[1772676066487,0.48291219,2115.5,2114.9,0.999]
[1772676066686,0.48191219,2115.3,2114.7,0.999]
[1772676066886,0.48191219,2115.3,2114.3,4.73067676]
[1772676067063,0.48191219,2115.3,2114.4,2.18133038]
[1772676067260,0.48191219,2115.2,2114.4,0.999]
[1772676067584,0.48191219,2115.2,2114.4,1.48687]
[1772676067785,0.48291219,2115.5,2114.5,0.48787]
[1772676067958,3.24880593,2115.4,2114.5,0.48787]
[1772676068157,0.48191219,2115.4,2114.5,0.48787]
[1772676068360,1.18181582,2115.4,2114.7,0.48787]
[1772676068665,1.66468783,2115.5,2114.7,0.48787]
[1772676068890,1.18277564,2115.5,2114.7,0.48787]
[1772676069288,0.48191219,2115.3,2114.8,0.999]
[1772676069789,1.18277564,2115.5,2114.8,0.999]
[1772676069957,0.001,2115.5,2114.8,1.48687]
[1772676070161,0.001,2115.5,2114.9,0.48787]
[1772676070359,0.001,2115.5,2115.0,1.66990309]
[1772676071065,0.001,2115.5,2115.0,1.18203309]
[1772676071599,0.001,2115.5,2115.1,0.48787]
[1772676072386,0.001,2115.5,2115.2,1.18192133]
[1772676072599,0.001,2115.5,2115.3,1.0]
[1772676074083,0.48191219,2115.9,2115.3,1.0]
[1772676074291,0.48191219,2115.9,2115.4,1.18180958]
[1772676075677,1.6634472,2115.9,2115.4,1.18180958]
[1772676076781,0.48191219,2115.8,2115.2,1.18192133]
[1772676077088,0.48191219,2115.6,2115.3,0.501]
[1772676077292,1.18153501,2115.9,2115.3,0.98887]
[1772676077503,1.18151181,2116.0,2115.3,0.98887]
[1772676077666,1.66337473,2116.1,2115.3,0.98887]
[1772676077866,1.1813223,2116.3,2115.4,0.48787]
[1772676078099,1.66323449,2116.3,2115.4,0.48787]
[1772676078513,1.66323449,2116.3,2115.5,1.66962372]
[1772676078807,1.66323449,2116.3,2115.5,2.67062372]
[1772676078991,1.66323449,2116.3,2115.6,1.001]
[1772676078992,0.49809476,2116.2,2115.6,1.001]
[1772676079503,2.21432161,2116.6,2115.6,1.001]
[1772676079504,2.21432161,2116.9,2115.7,0.49823059]
[1772676079702,0.49809476,2117.0,2115.7,0.49823059]
[1772676079906,0.49809476,2117.0,2115.6,1.001]
[1772676079907,1.18062622,2117.6,2116.3,0.49823059]
[1772676080070,1.18062622,2117.6,2116.5,0.49823059]
[1772676080271,1.67850932,2117.9,2116.5,0.49823059]
[1772676080519,1.67850932,2117.9,2116.7,0.49823059]
[1772676081003,0.49809476,2117.7,2116.6,1.002]
[1772676081508,0.49809476,2117.7,2116.7,0.49823059]
[1772676081667,0.49809476,2117.7,2116.7,1.50023059]
[1772676081876,0.49809476,2117.5,2116.5,1.002]
[1772676082789,0.49809476,2117.3,2116.5,1.002]
[1772676083185,0.49809476,2117.3,2116.5,2.18319373]
[1772676083389,1.18067615,2117.5,2116.6,0.49823059]
[1772676083695,1.18047029,2117.8,2116.6,0.49823059]
[1772676084283,0.49809476,2117.7,2116.6,0.49823059]
[1772676084686,1.18058179,2117.6,2116.3,0.49823059]
[1772676084876,0.49809476,2117.5,2116.3,2.68150413]
[1772676085471,0.49809476,2117.5,2116.4,0.49823059]
[1772676087106,1.1806933,2117.4,2116.5,1.18119536]
[1772676087416,1.18052604,2117.7,2116.6,0.465053]
[1772676087970,0.47080304,2117.6,2116.7,1.002]
[1772676089302,1.18063754,2117.5,2116.7,1.002]
[1772676089504,1.65144058,2117.5,2116.7,1.002]
[1772676089917,0.47080304,2117.4,2116.4,1.002]
[1772676090403,0.47080304,2117.4,2116.4,1.467053]
[1772676090788,0.47080304,2117.4,2116.4,0.465053]
[1772676090991,0.47080304,2117.4,2116.5,1.002]
[1772676091192,1.6515521,2117.3,2116.5,1.002]
[1772676091389,0.47080304,2117.2,2116.3,1.002]
[1772676091791,0.47080304,2117.2,2116.2,4.35527972]
[1772676091997,0.47080304,2117.2,2116.3,1.002]
[1772676092389,0.47080304,2117.2,2116.3,1.467053]
[1772676093520,1.1806933,2117.4,2116.4,0.465053]
[1772676095490,0.001,2117.5,2116.6,0.465053]
[1772676097595,0.001,2117.5,2116.8,0.465053]
[1772676097799,0.001,2117.5,2116.9,1.467053]
[1772676098024,0.001,2117.5,2117.0,0.465053]
[1772676099294,1.18041456,2117.9,2117.0,0.465053]
[1772676099724,1.18041456,2117.9,2117.2,0.465053]
[1772676100438,1.86825858,2118.0,2117.3,0.465053]
[1772676101648,1.86825858,2118.0,2117.0,0.465053]
[1772676101649,0.47080304,2117.9,2117.0,0.465053]
[1772676101821,1.18047029,2117.8,2117.1,0.465053]
[1772676101997,1.18045686,2117.9,2117.1,0.465053]
[1772676102501,5.40943481,2118.0,2117.1,0.465053]
[1772676102502,0.68788972,2118.0,2117.1,0.465053]
[1772676103292,1.86824934,2118.0,2117.1,0.465053]
[1772676103509,0.001,2117.7,2117.1,1.467053]
[1772676103708,0.001,2117.7,2117.2,1.18080483]
[1772676103897,0.47180304,2117.7,2116.9,1.64602303]